[Event "12ème open de Salon"]
[Site "Salon de Provence, France"]
[Date "2022.07.09"]
[Round "1.7"]
[White "Peiro, Yoann"]
[Black "Schmitz, Yves"]
[Result "0-1"]
[TimeControl "1 h 30 min + 30 s"]
[WhiteElo "1199"]
[BlackElo "1463"]

1. e4 {[%clk 01:30:55]} {[%emt 00:00:04]} c5 {[%clk 01:30:28]} {[%emt
00:00:33]} 2. Nc3 {[%clk 01:30:19]} {[%emt 00:01:06]} Nc6 {[%clk 01:29:27]}
{[%emt 00:01:31]} 3. Nf3 {[%clk 01:29:58]} {[%emt 00:00:51]} g6 {[%clk
01:27:23]} {[%emt 00:02:34]} 4. Bb5 {[%clk 01:27:46]} {[%emt 00:02:42]} Bg7
{[%clk 01:26:16]} {[%emt 00:01:37]} 5. Bxc6 {[%clk 01:26:22]} {[%emt 00:01:50]}
dxc6 {[%clk 01:23:34]} {[%emt 00:03:16]} 6. O-O {[%clk 01:23:39]} {[%emt
00:03:13]} Nf6 {[%clk 01:22:06]} {[%emt 00:01:58]} 7. e5 {[%clk 01:22:02]}
{[%emt 00:02:07]} Nd5 {[%clk 01:21:49]} {[%emt 00:00:48]} 8. d3 {[%clk
01:20:57]} {[%emt 00:01:35]} O-O {[%clk 01:19:52]} {[%emt 00:02:27]} 9. Be3
{[%clk 01:20:06]} {[%emt 00:01:21]} b6 {[%clk 01:17:10]} {[%emt 00:03:12]} 10.
a3 {[%clk 01:18:56]} {[%emt 00:01:39]} Qc7 {[%clk 01:14:12]} {[%emt 00:03:29]}
11. b4 {[%clk 01:18:15]} {[%emt 00:01:11]} Nxc3 {[%clk 01:14:18]} {[%emt
00:00:24]} 12. Qd2 {[%clk 01:14:37]} {[%emt 00:04:08]} Na4 {[%clk 01:13:29]}
{[%emt 00:01:19]} 13. c3 {[%clk 01:13:21]} {[%emt 00:01:46]} Bg4 {[%clk
01:11:56]} {[%emt 00:02:04]} 14. d4 {[%clk 01:12:14]} {[%emt 00:01:37]} Bxf3
{[%clk 01:12:05]} {[%emt 00:00:21]} 15. gxf3 {[%clk 01:11:56]} {[%emt
00:00:47]} cxd4 {[%clk 01:09:13]} {[%emt 00:03:22]} 16. Bxd4 {[%clk 01:11:08]}
{[%emt 00:01:19]} c5 {[%clk 01:08:03]} {[%emt 00:01:40]} 17. Be3 {[%clk
01:10:10]} {[%emt 00:01:28]} Bxe5 {[%clk 01:08:06]} {[%emt 00:00:27]} 18. Bh6
{[%clk 01:09:26]} {[%emt 00:01:13]} Bxc3 {[%clk 01:02:40]} {[%emt 00:05:55]} 19.
Qd1 {[%clk 01:08:39]} {[%emt 00:01:17]} Bxa1 {[%clk 01:01:54]} {[%emt
00:01:16]} 20. Qxa4 {[%clk 01:07:36]} {[%emt 00:01:33]} Bg7 {[%clk 01:02:02]}
{[%emt 00:00:23]} 21. Bxg7 {[%clk 01:07:36]} {[%emt 00:00:30]} Kxg7 {[%clk
01:02:10]} {[%emt 00:00:22]} 22. Qc2 {[%clk 01:07:17]} {[%emt 00:00:45]} Rac8
{[%clk 01:01:37]} {[%emt 00:01:06]} 23. Qb2+ {[%clk 01:05:31]} {[%emt
00:02:17]} Kg8 {[%clk 01:01:40]} {[%emt 00:00:27]} 24. h4 {[%clk 01:05:22]}
{[%emt 00:00:39]} Qf4 {[%clk 01:01:30]} {[%emt 00:00:38]} 25. h5 {[%clk
01:04:49]} {[%emt 00:01:05]} Qg5+ {[%emt 00:01:22]} 0-1

[Event "12ème open de Salon"]
[Site "Salon de Provence, France"]
[Date "2022.07.10"]
[Round "2.1"]
[White "Busson, Benoit"]
[Black "Figier, Anthony"]
[Result "1-0"]
[TimeControl "1 h 30 min + 30 s"]
[WhiteElo "1871"]
[BlackElo "1977"]

1. e4 {[%clk 01:30:56]} {[%emt 00:00:03]} Nf6 {[%clk 01:29:31]} {[%emt
00:01:30]} 2. e5 {[%clk 01:30:53]} {[%emt 00:00:33]} Nd5 {[%clk 01:29:53]}
{[%emt 00:00:08]} 3. Nc3 {[%clk 01:31:06]} {[%emt 00:00:17]} c6 {[%clk
01:29:53]} {[%emt 00:00:31]} 4. Nf3 {[%clk 01:27:47]} {[%emt 00:03:49]} d6
{[%clk 01:29:34]} {[%emt 00:00:48]} 5. Nxd5 {[%clk 01:24:52]} {[%emt 00:03:25]}
cxd5 {[%clk 01:29:51]} {[%emt 00:00:14]} 6. d4 {[%clk 01:20:26]} {[%emt
00:04:56]} dxe5 {[%clk 01:21:09]} {[%emt 00:09:12]} 7. Nxe5 {[%clk 01:17:34]}
{[%emt 00:03:19]} Nc6 {[%emt 00:00:25]} 8. c3 {[%clk 01:10:28]} {[%emt
00:07:33]} Nxe5 {[%emt 00:07:18]} 9. dxe5 {[%clk 01:10:47]} {[%emt 00:00:09]}
e6 {[%clk 01:14:56]} {[%emt 00:00:08]} 10. Qg4 {[%clk 01:08:46]} {[%emt
00:02:30]} Qc7 {[%clk 01:08:37]} {[%emt 00:06:50]} 11. Qg3 {[%clk 01:03:05]}
{[%emt 00:06:10]} Bd7 {[%clk 01:04:05]} {[%emt 00:05:03]} 12. Be3 {[%clk
01:01:36]} {[%emt 00:01:57]} b5 {[%clk 01:00:02]} {[%emt 00:04:34]} 13. Bd3
{[%clk 00:58:22]} {[%emt 00:03:43]} g6 {[%clk 00:52:01]} {[%emt 00:08:32]} 14.
O-O {[%clk 00:56:40]} {[%emt 00:02:12]} Bg7 {[%clk 00:48:48]} {[%emt 00:03:43]}
15. Bd4 {[%clk 00:56:37]} {[%emt 00:00:32]} O-O {[%clk 00:48:34]} {[%emt
00:00:44]} 16. h4 {[%clk 00:55:06]} {[%emt 00:02:02]} a5 {[%clk 00:47:24]}
{[%emt 00:01:39]} 17. h5 {[%clk 00:51:51]} {[%emt 00:03:45]} Rac8 {[%clk
00:43:55]} {[%emt 00:04:00]} 18. Qe3 {[%clk 00:46:39]} {[%emt 00:05:41]} Rfe8
{[%clk 00:42:02]} {[%emt 00:02:23]} 19. hxg6 {[%clk 00:45:29]} {[%emt
00:01:40]} fxg6 {[%clk 00:37:40]} {[%emt 00:04:52]} 20. a3 {[%clk 00:38:45]}
{[%emt 00:07:13]} Ra8 {[%clk 00:31:30]} {[%emt 00:06:41]} 21. Rfe1 {[%clk
00:33:09]} {[%emt 00:06:05]} Rf8 {[%emt 00:06:18]} 22. Qh3 {[%clk 00:28:35]}
Rf7 {[%clk 00:30:39]} {[%emt 00:00:38]} 23. g3 {[%clk 00:25:21]} {[%emt
00:03:44]} Re7 {[%clk 00:10:50]} {[%emt 00:20:19]} 24. f4 {[%clk 00:22:57]}
{[%emt 00:02:53]} Bf8 {[%clk 00:10:26]} {[%emt 00:00:55]} 25. Kg2 {[%clk
00:22:22]} {[%emt 00:01:05]} Be8 {[%clk 00:09:14]} {[%emt 00:01:42]} 26. b4
{[%clk 00:21:23]} {[%emt 00:01:29]} Qc6 {[%clk 00:09:12]} {[%emt 00:00:33]} 27.
Rh1 {[%clk 00:16:46]} {[%emt 00:05:06]} Qc8 {[%clk 00:07:15]} {[%emt 00:02:27]}
28. Kf2 {[%clk 00:13:18]} {[%emt 00:03:58]} axb4 {[%clk 00:06:17]} {[%emt
00:01:29]} 29. axb4 {[%clk 00:13:37]} {[%emt 00:00:11]} Ra4 {[%clk 00:06:46]}
{[%emt 00:00:01]} 30. Rxa4 {[%clk 00:13:31]} {[%emt 00:00:35]} bxa4 {[%clk
00:07:10]} {[%emt 00:00:06]} 31. Ra1 {[%clk 00:11:43]} {[%emt 00:02:18]} Rc7
{[%clk 00:04:51]} {[%emt 00:02:49]} 32. Ra3 {[%clk 00:10:48]} {[%emt 00:01:25]}
Bd7 {[%clk 00:04:20]} {[%emt 00:01:02]} 33. Qf1 {[%clk 00:10:38]} {[%emt
00:00:39]} Qb7 {[%clk 00:04:44]} {[%emt 00:00:05]} 34. Qe2 {[%clk 00:09:29]}
{[%emt 00:01:39]} Be7 {[%clk 00:04:03]} {[%emt 00:01:12]} 35. Qb2 {[%clk
00:08:22]} {[%emt 00:01:36]} Rc8 {[%clk 00:03:59]} {[%emt 00:00:35]} 36. Ra1
{[%clk 00:05:24]} {[%emt 00:03:28]} Bb5 {[%clk 00:03:53]} {[%emt 00:00:36]} 37.
Bc2 {[%clk 00:04:48]} {[%emt 00:01:06]} Qc6 {[%clk 00:03:59]} {[%emt 00:00:26]}
38. Qb1 {[%clk 00:04:30]} {[%emt 00:00:47]} Ra8 {[%clk 00:02:48]} {[%emt
00:01:42]} 39. Bxg6 {[%clk 00:04:51]} {[%emt 00:00:09]} Qc4 {[%clk 00:01:21]}
{[%emt 00:01:57]} 40. Bxh7+ {[%clk 00:03:33]} {[%emt 00:01:47]} Kh8 {[%clk
00:01:50]} {[%emt 00:00:01]} 41. Qc2 {[%clk 00:03:41]} {[%emt 00:00:21]} a3
{[%clk 00:00:38]} {[%emt 00:01:42]} 42. Rh1 {[%clk 00:02:53]} {[%emt 00:01:18]}
Bh4 {[%clk 00:01:03]} {[%emt 00:00:06]} 43. Rxh4 {[%clk 00:01:49]} {[%emt
00:01:34]} Qf1+ {[%clk 00:01:25]} {[%emt 00:00:07]} 44. Ke3 {[%clk 00:02:11]}
{[%emt 00:00:07]} Qe1+ {[%clk 00:01:37]} {[%emt 00:00:19]} 45. Kf3 {[%clk
00:02:08]} {[%emt 00:00:32]} Qf1+ {[%clk 00:01:06]} {[%emt 00:01:02]} 46. Bf2
{[%clk 00:01:36]} {[%emt 00:01:01]} Qe2+ {[%clk 00:01:20]} {[%emt 00:00:17]} 47.
Qxe2 {[%clk 00:01:41]} {[%emt 00:00:24]} Bxe2+ {[%clk 00:01:46]} {[%emt
00:00:04]} 48. Kxe2 {[%clk 00:01:53]} {[%emt 00:00:19]} a2 {[%clk 00:01:57]}
{[%emt 00:00:18]} 49. Bb1+ {[%clk 00:02:12]} {[%emt 00:00:11]} Kg7 {[%clk
00:02:23]} {[%emt 00:00:04]} 50. Bxa2 {[%clk 00:02:23]} {[%emt 00:00:19]} Rxa2+
{[%clk 00:02:48]} {[%emt 00:00:05]} 51. Kf3 {[%clk 00:02:23]} {[%emt 00:00:30]}
Ra3 {[%clk 00:02:27]} {[%emt 00:00:30]} 1-0

[Event "12ème open de Salon"]
[Site "Salon de Provence, France"]
[Date "2022.07.10"]
[Round "2.2"]
[White "Rachet, Olivier"]
[Black "Chaumet, Etienne"]
[Result "0-1"]
[TimeControl "1 h 30 min + 30 s"]
[WhiteElo "1880"]
[BlackElo "1809"]

1. c4 {[%clk 01:30:56]} {[%emt 00:00:02]} e5 {[%clk 01:30:41]} {[%emt
00:00:20]} 2. Nc3 {[%clk 01:31:11]} {[%emt 00:00:15]} Nc6 {[%clk 01:29:58]}
{[%emt 00:01:12]} 3. g3 {[%clk 01:31:26]} {[%emt 00:00:15]} f5 {[%clk
01:28:18]} {[%emt 00:02:10]} 4. d3 {[%clk 01:26:53]} {[%emt 00:05:03]} Bb4
{[%clk 01:26:11]} {[%emt 00:02:38]} 5. Bg2 {[%clk 01:17:34]} {[%emt 00:09:49]}
Nf6 {[%clk 01:23:24]} {[%emt 00:03:17]} 6. Bd2 {[%clk 01:11:09]} {[%emt
00:06:55]} O-O {[%clk 01:21:12]} {[%emt 00:02:42]} 7. e3 {[%clk 01:11:11]}
{[%emt 00:00:27]} d6 {[%clk 01:16:20]} {[%emt 00:05:22]} 8. Nge2 {[%clk
01:11:12]} {[%emt 00:00:30]} Bd7 {[%clk 01:09:21]} {[%emt 00:07:29]} 9. O-O
{[%clk 01:11:26]} {[%emt 00:00:16]} Bxc3 {[%clk 01:05:39]} {[%emt 00:04:12]} 10.
Nxc3 {[%clk 01:10:52]} {[%emt 00:01:03]} Qe8 {[%clk 01:05:05]} {[%emt
00:01:05]} 11. a3 {[%clk 01:04:47]} {[%emt 00:06:35]} Rb8 {[%clk 01:00:54]}
{[%emt 00:04:41]} 12. b4 {[%clk 00:29:29]} {[%emt 00:35:47]} Ne7 {[%clk
00:55:32]} {[%emt 00:05:52]} 13. b5 {[%clk 00:25:36]} {[%emt 00:04:24]} c6
{[%clk 00:45:32]} {[%emt 00:10:30]} 14. a4 {[%clk 00:25:47]} {[%emt 00:00:19]}
d5 {[%clk 00:43:11]} {[%emt 00:02:50]} 15. cxd5 {[%clk 00:23:34]} {[%emt
00:02:44]} cxd5 {[%clk 00:40:14]} {[%emt 00:03:27]} 16. Qb3 {[%clk 00:19:00]}
{[%emt 00:05:04]} Qf7 {[%clk 00:38:27]} {[%emt 00:02:17]} 17. Ne2 {[%clk
00:16:48]} {[%emt 00:02:42]} Rfc8 {[%clk 00:35:15]} {[%emt 00:03:42]} 18. Bb4
{[%clk 00:13:40]} {[%emt 00:03:38]} Ng6 {[%clk 00:29:00]} {[%emt 00:06:45]} 19.
Bd6 {[%clk 00:12:09]} {[%emt 00:02:01]} Ra8 {[%clk 00:29:23]} {[%emt 00:00:08]}
20. Rac1 {[%clk 00:11:21]} {[%emt 00:01:18]} Be6 {[%clk 00:26:43]} {[%emt
00:03:10]} 21. Qb2 {[%clk 00:10:54]} {[%emt 00:00:57]} e4 {[%clk 00:23:28]}
{[%emt 00:03:46]} 22. Qd4 {[%clk 00:07:34]} {[%emt 00:03:49]} Qd7 {[%clk
00:21:58]} {[%emt 00:02:00]} 23. Ba3 {[%clk 00:06:52]} {[%emt 00:01:11]} b6
{[%clk 00:19:27]} {[%emt 00:03:01]} 24. dxe4 {[%clk 00:05:50]} {[%emt
00:01:32]} fxe4 {[%clk 00:17:12]} {[%emt 00:02:46]} 25. f3 {[%clk 00:04:13]}
{[%emt 00:02:07]} Bh3 {[%clk 00:16:31]} {[%emt 00:01:10]} 26. fxe4 {[%clk
00:04:12]} {[%emt 00:00:32]} Bxg2 {[%clk 00:16:40]} {[%emt 00:00:20]} 27. Kxg2
{[%clk 00:04:37]} {[%emt 00:00:06]} Qg4 {[%clk 00:12:07]} {[%emt 00:05:03]} 28.
Nf4 {[%clk 00:04:52]} {[%emt 00:00:15]} Rc7 {[%emt 00:03:09]} 29. Rc5 Rxc5
{[%clk 00:09:25]} 30. Bc1 {[%clk 00:03:57]} {[%emt 00:01:28]} 0-1

[Event "12ème open de Salon"]
[Site "Salon de Provence, France"]
[Date "2022.07.10"]
[Round "2.3"]
[White "Lalic, Bogdan"]
[Black "Mounier, Victor"]
[Result "1-0"]
[TimeControl "1 h 30 min + 30 s"]
[WhiteElo "2412"]
[BlackElo "1888"]

1. d4 {[%clk 01:30:58]} {[%emt 00:00:02]} Nf6 {[%clk 01:30:38]} {[%emt
00:00:23]} 2. c4 {[%clk 01:31:19]} {[%emt 00:00:08]} e6 {[%clk 01:30:28]}
{[%emt 00:00:40]} 3. Nc3 {[%clk 01:31:39]} {[%emt 00:00:09]} Bb4 {[%clk
01:30:40]} {[%emt 00:00:18]} 4. e3 {[%clk 01:32:01]} {[%emt 00:00:08]} O-O
{[%clk 01:29:38]} {[%emt 00:01:32]} 5. Nge2 {[%clk 01:32:25]} {[%emt 00:00:06]}
Re8 {[%clk 01:29:46]} {[%emt 00:00:23]} 6. a3 {[%clk 01:32:46]} {[%emt
00:00:09]} Bf8 {[%clk 01:30:03]} {[%emt 00:00:13]} 7. Ng3 {[%clk 01:31:37]}
{[%emt 00:01:39]} b6 {[%clk 01:25:54]} {[%emt 00:04:39]} 8. d5 {[%clk
01:30:45]} {[%emt 00:01:22]} Ba6 {[%clk 01:24:45]} {[%emt 00:01:39]} 9. Be2
{[%clk 01:30:45]} {[%emt 00:00:30]} exd5 {[%clk 01:24:11]} {[%emt 00:01:04]} 10.
cxd5 {[%clk 01:31:09]} {[%emt 00:00:06]} Bxe2 {[%clk 01:24:12]} {[%emt
00:00:29]} 11. Qxe2 {[%clk 01:31:36]} {[%emt 00:00:02]} c5 {[%clk 01:15:07]}
{[%emt 00:09:35]} 12. O-O {[%clk 01:31:41]} {[%emt 00:00:26]} d6 {[%clk
01:15:24]} {[%emt 00:00:13]} 13. b4 {[%clk 01:29:27]} {[%emt 00:02:43]} a6
{[%clk 01:12:32]} {[%emt 00:03:23]} 14. bxc5 {[%clk 01:27:42]} {[%emt
00:02:15]} bxc5 {[%clk 01:08:53]} {[%emt 00:04:08]} 15. e4 {[%clk 01:28:00]}
{[%emt 00:00:12]} g6 {[%clk 01:08:10]} {[%emt 00:01:14]} 16. Rb1 {[%clk
01:24:12]} {[%emt 00:04:18]} Nbd7 {[%clk 01:08:10]} {[%emt 00:00:31]} 17. Qc2
{[%clk 01:23:33]} {[%emt 00:01:08]} Bg7 {[%clk 01:06:56]} {[%emt 00:01:45]} 18.
h3 {[%clk 01:20:22]} {[%emt 00:03:41]} Qa5 {[%clk 01:03:06]} {[%emt 00:04:20]}
19. Na4 {[%clk 01:20:16]} {[%emt 00:00:35]} h5 {[%clk 01:01:53]} {[%emt
00:01:44]} 20. Bd2 {[%clk 01:20:34]} {[%emt 00:00:11]} Qc7 {[%clk 01:01:34]}
{[%emt 00:00:49]} 21. Rfe1 {[%clk 01:20:42]} {[%emt 00:00:23]} Rab8 {[%clk
00:59:13]} {[%emt 00:02:52]} 22. Rxb8 {[%clk 01:16:22]} {[%emt 00:04:50]} Qxb8
{[%clk 00:59:25]} {[%emt 00:00:18]} 23. Nf1 {[%clk 01:14:06]} {[%emt 00:02:45]}
Ne5 {[%clk 00:56:46]} {[%emt 00:03:10]} 24. Nb2 {[%clk 01:10:31]} {[%emt
00:04:05]} Qb7 {[%clk 00:49:04]} {[%emt 00:08:13]} 25. f4 {[%clk 01:10:12]}
{[%emt 00:00:48]} Ned7 {[%clk 00:48:23]} {[%emt 00:01:12]} 26. Nc4 {[%clk
01:10:23]} {[%emt 00:00:18]} Bf8 {[%clk 00:47:46]} {[%emt 00:01:07]} 27. Bc3
{[%clk 01:05:31]} {[%emt 00:05:21]} Rb8 {[%clk 00:46:33]} {[%emt 00:01:44]} 28.
Nfd2 {[%clk 01:05:25]} {[%emt 00:00:36]} Qc8 {[%clk 00:45:20]} {[%emt
00:01:43]} 29. Qd3 {[%clk 01:05:09]} {[%emt 00:00:45]} Qb7 {[%clk 00:44:29]}
{[%emt 00:01:22]} 30. Rb1 {[%clk 01:05:03]} {[%emt 00:00:36]} Qa8 {[%clk
00:44:49]} {[%emt 00:00:10]} 31. Rxb8 {[%clk 01:05:16]} {[%emt 00:00:16]} Qxb8
{[%clk 00:44:41]} {[%emt 00:00:39]} 32. e5 {[%clk 01:05:42]} {[%emt 00:00:05]}
Ne8 {[%clk 00:39:47]} {[%emt 00:05:24]} 33. Ne4 {[%clk 01:05:30]} {[%emt
00:00:41]} dxe5 {[%clk 00:37:19]} {[%emt 00:02:59]} 34. fxe5 {[%clk 01:05:53]}
{[%emt 00:00:07]} Bg7 {[%clk 00:35:55]} {[%emt 00:01:54]} 35. e6 {[%clk
01:06:08]} {[%emt 00:00:14]} fxe6 {[%clk 00:27:39]} {[%emt 00:08:47]} 36. dxe6
{[%clk 01:06:25]} {[%emt 00:00:12]} Nf8 {[%clk 00:17:03]} {[%emt 00:11:07]} 37.
e7 {[%clk 01:06:29]} {[%emt 00:00:25]} Ne6 {[%clk 00:15:52]} {[%emt 00:01:40]}
38. Ned6 {[%clk 00:44:32]} {[%emt 00:22:27]} Nf4 {[%clk 00:12:53]} {[%emt
00:03:30]} 39. Nxe8 {[%clk 00:39:28]} {[%emt 00:05:35]} Bxc3 {[%clk 00:06:13]}
{[%emt 00:07:09]} 40. Qe4 {[%clk 00:37:25]} {[%emt 00:02:33]} Bd4+ {[%clk
00:05:43]} {[%emt 00:01:01]} 41. Kh1 {[%clk 00:37:15]} {[%emt 00:00:39]} Kh7
{[%clk 00:01:26]} {[%emt 00:04:47]} 42. Nf6+ {[%clk 00:37:06]} {[%emt
00:00:38]} Bxf6 {[%clk 00:01:37]} {[%emt 00:00:19]} 43. e8=Q {[%clk 00:37:30]}
{[%emt 00:00:07]} Qc7 {[%clk 00:01:09]} {[%emt 00:00:59]} 44. Q8c6 {[%clk
00:37:35]} {[%emt 00:00:23]} Qb8 {[%clk 00:00:47]} {[%emt 00:00:53]} 45. Qxf6
{[%clk 00:37:44]} {[%emt 00:00:20]} 1-0

[Event "12ème open de Salon"]
[Site "Salon de Provence, France"]
[Date "2022.07.10"]
[Round "2.4"]
[White "Tramarin, Matteo"]
[Black "Colandrea, Sauveur"]
[Result "1-0"]
[TimeControl "1 h 30 min + 30 s"]
[WhiteElo "1501"]
[BlackElo "1619"]

1. c4 {[%clk 01:30:56]} {[%emt 00:00:03]} d6 {[%clk 01:30:17]} {[%emt
00:00:43]} 2. Nc3 {[%clk 01:30:46]} {[%emt 00:00:39]} e5 {[%clk 01:30:21]}
{[%emt 00:00:26]} 3. g3 {[%clk 01:29:55]} {[%emt 00:01:21]} Nf6 {[%clk
01:29:36]} {[%emt 00:01:15]} 4. Nf3 {[%clk 01:29:32]} {[%emt 00:00:52]} Be7
{[%clk 01:27:04]} {[%emt 00:03:02]} 5. Bg2 {[%clk 01:28:40]} {[%emt 00:01:23]}
O-O {[%clk 01:26:58]} {[%emt 00:00:36]} 6. d3 {[%clk 01:28:33]} {[%emt
00:00:36]} c6 {[%clk 01:24:44]} {[%emt 00:02:45]} 7. O-O {[%clk 01:26:11]}
{[%emt 00:02:51]} h6 {[%clk 01:24:15]} {[%emt 00:00:59]} 8. Rb1 {[%clk
01:25:35]} {[%emt 00:01:05]} Bf5 {[%clk 01:24:05]} {[%emt 00:00:41]} 9. b4
{[%clk 01:25:23]} {[%emt 00:00:43]} Qc7 {[%clk 01:22:14]} {[%emt 00:02:20]} 10.
b5 {[%clk 01:23:32]} {[%emt 00:02:22]} Nbd7 {[%clk 01:22:23]} {[%emt 00:00:22]}
11. a4 {[%clk 01:22:11]} {[%emt 00:01:49]} Rfb8 {[%clk 01:18:37]} {[%emt
00:04:16]} 12. Ba3 {[%clk 01:19:06]} {[%emt 00:03:36]} Bh7 {[%clk 01:15:13]}
{[%emt 00:03:55]} 13. Nd2 {[%clk 01:16:57]} {[%emt 00:02:38]} Nf8 {[%clk
01:11:35]} {[%emt 00:04:08]} 14. Qb3 {[%clk 01:12:05]} {[%emt 00:05:22]} Bf5
{[%clk 01:10:10]} {[%emt 00:01:55]} 15. Nde4 {[%clk 01:10:07]} {[%emt
00:02:29]} Nxe4 {[%clk 01:04:26]} {[%emt 00:06:14]} 16. Nxe4 {[%clk 01:09:08]}
{[%emt 00:01:28]} Nd7 {[%clk 01:01:29]} {[%emt 00:03:27]} 17. Rfc1 {[%clk
01:08:10]} {[%emt 00:01:28]} Nf6 {[%clk 01:00:09]} {[%emt 00:01:50]} 18. c5
{[%clk 01:06:07]} {[%emt 00:02:33]} Nxe4 {[%clk 00:54:10]} {[%emt 00:06:28]} 19.
Bxe4 {[%clk 01:05:10]} {[%emt 00:01:27]} Be6 {[%clk 00:53:58]} {[%emt
00:00:43]} 20. cxd6 {[%clk 01:04:45]} {[%emt 00:00:54]} Bxd6 {[%clk 00:54:08]}
{[%emt 00:00:20]} 21. Bxd6 {[%clk 01:04:49]} {[%emt 00:00:26]} Qxd6 {[%clk
00:54:29]} {[%emt 00:00:10]} 22. Qc3 {[%clk 01:05:08]} {[%emt 00:00:11]} cxb5
{[%clk 00:53:04]} {[%emt 00:01:55]} 23. Rxb5 {[%clk 01:05:16]} {[%emt
00:00:22]} Rc8 {[%clk 00:53:12]} {[%emt 00:00:22]} 24. Rc5 {[%clk 01:03:09]}
{[%emt 00:02:37]} g6 {[%clk 00:39:25]} {[%emt 00:14:18]} 25. Bxb7 {[%clk
01:01:05]} {[%emt 00:02:33]} Rxc5 {[%clk 00:39:47]} {[%emt 00:00:09]} 26. Qxc5
{[%clk 01:01:21]} {[%emt 00:00:12]} Qxc5 {[%clk 00:40:10]} {[%emt 00:00:08]} 27.
Rxc5 {[%clk 01:01:25]} {[%emt 00:00:26]} Rb8 {[%clk 00:40:18]} {[%emt
00:00:22]} 28. Rc7 {[%clk 00:58:21]} {[%emt 00:03:34]} a5 {[%clk 00:40:08]}
{[%emt 00:00:39]} 29. f3 {[%clk 00:57:27]} {[%emt 00:01:25]} Bb3 {[%clk
00:38:53]} {[%emt 00:01:43]} 30. Bc6 {[%clk 00:56:24]} {[%emt 00:01:35]} Rb4
{[%clk 00:38:48]} {[%emt 00:00:35]} 31. Ra7 {[%clk 00:54:56]} {[%emt 00:01:58]}
Bxa4 {[%clk 00:38:49]} {[%emt 00:00:29]} 32. Bd5 {[%clk 00:55:13]} {[%emt
00:00:13]} Bb3 {[%clk 00:37:37]} {[%emt 00:01:41]} 33. Rxa5 {[%clk 00:54:24]}
{[%emt 00:01:19]} Bxd5 {[%clk 00:36:55]} {[%emt 00:01:12]} 34. Rxd5 {[%clk
00:54:42]} {[%emt 00:00:11]} f6 {[%clk 00:37:16]} {[%emt 00:00:09]} 35. Kf2
{[%clk 00:55:02]} {[%emt 00:00:10]} Kf7 {[%clk 00:37:30]} {[%emt 00:00:16]} 36.
Rd6 {[%clk 00:54:55]} {[%emt 00:00:38]} Ke7 {[%clk 00:35:03]} {[%emt 00:02:56]}
37. Rc6 {[%clk 00:55:01]} {[%emt 00:00:24]} Ra4 {[%clk 00:35:22]} {[%emt
00:00:10]} 38. g4 {[%clk 00:51:53]} {[%emt 00:03:39]} Kf7 {[%clk 00:33:04]}
{[%emt 00:02:48]} 39. Rc7+ {[%clk 00:51:28]} {[%emt 00:00:56]} Kg8 {[%clk
00:32:29]} {[%emt 00:01:04]} 40. Re7 {[%clk 00:49:23]} {[%emt 00:02:35]} Ra5
{[%clk 00:31:02]} {[%emt 00:01:57]} 41. Ke3 {[%clk 00:48:28]} {[%emt 00:01:26]}
h5 {[%clk 00:31:13]} {[%emt 00:00:18]} 42. h3 {[%clk 00:47:44]} {[%emt
00:01:14]} hxg4 {[%clk 00:29:05]} {[%emt 00:02:38]} 43. hxg4 {[%clk 00:47:49]}
{[%emt 00:00:25]} f5 {[%clk 00:27:54]} {[%emt 00:01:40]} 44. gxf5 {[%clk
00:47:49]} {[%emt 00:00:32]} gxf5 {[%clk 00:28:21]} {[%emt 00:00:02]} 45. f4
{[%clk 00:48:09]} {[%emt 00:00:10]} 1-0

[Event "12ème open de Salon"]
[Site "Salon de Provence, France"]
[Date "2022.07.10"]
[Round "2.5"]
[White "Roganova, Maxime"]
[Black "Schiano-Lomoriello, Didier"]
[Result "1-0"]
[TimeControl "1 h 30 min + 30 s"]
[WhiteElo "1471"]
[BlackElo "1570"]

1. e4 {[%clk 01:30:57]} {[%emt 00:00:02]} c5 {[%clk 01:30:53]} {[%emt
00:00:08]} 2. d4 {[%clk 01:31:24]} {[%emt 00:00:03]} cxd4 {[%clk 01:30:59]}
{[%emt 00:00:23]} 3. c3 {[%clk 01:31:48]} {[%emt 00:00:06]} dxc3 {[%clk
01:31:02]} {[%emt 00:00:28]} 4. Nxc3 {[%clk 01:32:11]} {[%emt 00:00:07]} e6
{[%clk 01:30:39]} {[%emt 00:00:53]} 5. Nf3 {[%clk 01:32:32]} {[%emt 00:00:08]}
a6 {[%clk 01:30:48]} {[%emt 00:00:21]} 6. Bc4 {[%clk 01:32:55]} {[%emt
00:00:07]} Nc6 {[%clk 01:30:53]} {[%emt 00:00:26]} 7. O-O {[%clk 01:32:29]}
{[%emt 00:00:56]} d6 {[%clk 01:31:05]} {[%emt 00:00:17]} 8. Qe2 {[%clk
01:31:54]} {[%emt 00:01:05]} Be7 {[%clk 01:30:47]} {[%emt 00:00:48]} 9. Rd1
{[%clk 01:31:11]} {[%emt 00:01:13]} Nf6 {[%clk 01:30:30]} {[%emt 00:00:47]} 10.
e5 {[%clk 01:28:19]} {[%emt 00:03:22]} Nd7 {[%clk 01:25:57]} {[%emt 00:05:03]}
11. exd6 {[%clk 01:22:13]} {[%emt 00:06:37]} Bf6 {[%clk 01:15:31]} {[%emt
00:10:55]} 12. Ne4 {[%clk 01:04:07]} {[%emt 00:18:36]} h6 {[%clk 01:09:35]}
{[%emt 00:06:27]} 13. Ng3 {[%clk 00:59:49]} {[%emt 00:04:48]} b5 {[%clk
00:51:45]} {[%emt 00:18:18]} 14. Bb3 {[%clk 00:57:24]} {[%emt 00:02:56]} Na5
{[%clk 00:45:00]} {[%emt 00:07:15]} 15. Bd2 {[%clk 00:47:18]} {[%emt 00:10:36]}
Bb7 {[%clk 00:38:30]} {[%emt 00:07:01]} 16. Bxe6 {[%clk 00:46:17]} {[%emt
00:01:31]} Rc8 {[%clk 00:31:04]} {[%emt 00:07:55]} 17. Bf5+ {[%emt 00:09:58]}
Ra8 {[%emt 00:00:21]} 1-0